bitfinex/quotes_ETHUSD_20250222
["timestamp","ask_amount","ask_price","bid_price","bid_amount"]
[1740205087317,4.26291,2693.3,2693.2,5.37]
[1740205088517,0.55,2693.3,2693.2,5.37]
[1740205089451,0.796,2694.0,2693.3,3.71289]
[1740205089657,3.7123,2693.8,2693.5,3.54907242]
[1740205089858,3.71242,2693.7,2693.5,3.54907242]
[1740205090030,3.7123,2693.8,2693.5,3.54907242]
[1740205090352,4.26247,2693.7,2693.5,3.54907242]
[1740205090914,4.26277,2693.4,2693.3,5.37]
[1740205091263,5.05877,2693.4,2693.3,5.37]
[1740205091631,1.346,2693.4,2693.2,3.54907242]
[1740205091814,4.50853,2693.6,2693.2,3.54907242]
[1740205092223,3.71291,2693.3,2693.2,3.54907242]
[1740205092623,3.71291,2693.3,2693.0,5.37]
[1740205092830,1.346,2693.2,2693.0,5.37]
[1740205093486,3.71247,2693.7,2693.0,9.0833]
[1740205093757,0.55,2693.7,2693.4,3.54907242]
[1740205094436,3.71264,2693.5,2693.4,0.05197519]
[1740205094637,0.55,2693.3,2693.0,5.37]
[1740205094847,0.55,2693.3,2693.2,3.54907242]
[1740205095052,0.55,2693.3,2693.1,0.05197932]
[1740205095251,0.55,2693.3,2693.0,9.08331]
[1740205095449,0.55,2693.3,2693.2,3.54907242]
[1740205095847,0.796,2693.6,2693.2,7.26204242]
[1740205096048,4.51063,2693.8,2693.5,3.54907242]
[1740205096327,4.2625,2693.6,2693.5,3.54907242]
[1740205097470,0.55,2693.6,2693.5,3.54907242]
[1740205100608,4.2625,2693.6,2693.5,3.54907242]
[1740205103101,4.2625,2693.6,2693.3,5.37]
[1740205103102,3.71277,2693.4,2693.3,5.37]
[1740205103403,5.02277,2693.4,2693.3,5.37]
[1740205103604,5.896313,2693.4,2693.3,5.37]
[1740205106185,3.71333,2693.0,2692.9,3.54907242]
[1740205106493,4.47346,2692.9,2692.8,5.37]
[1740205111086,3.71375,2692.7,2692.4,8.91907242]
[1740205111288,4.26361,2692.8,2692.4,8.91907242]
[1740205114089,0.55,2692.8,2692.7,3.54907242]
[1740205114308,0.76,2693.1,2692.7,3.54907242]
[1740205114800,4.26334,2693.0,2692.7,3.54907242]
[1740205116439,4.2636,2692.8,2692.7,3.54907242]
[1740205117238,4.26384,2692.7,2692.5,5.37]
[1740205117590,4.26388,2692.6,2692.5,5.37]
[1740205118807,4.26402,2692.5,2692.1,8.91907242]
[1740205119006,0.55,2692.5,2692.1,3.54907242]
[1740205119212,3.71425,2692.4,2692.1,3.54907242]
[1740205121806,7.42853,2692.4,2692.1,3.54907242]
[1740205122136,3.71425,2692.4,2692.1,3.54907242]
[1740205122805,3.71433,2692.3,2692.1,3.54907242]
[1740205123006,3.71416,2692.4,2692.1,8.91907242]
[1740205123205,7.42842,2692.4,2692.1,8.91907242]
[1740205123433,3.71416,2692.4,2692.1,8.91907242]
[1740205124112,4.26443,2692.2,2692.1,8.91907242]
[1740205124924,4.26443,2692.2,2692.1,5.37]
[1740205125142,4.47204,2692.5,2692.1,8.91907242]
[1740205125513,4.47204,2692.5,2692.1,5.37]
[1740205125719,4.26443,2692.2,2692.1,5.37]
[1740205127132,0.55,2692.2,2692.1,5.37]
[1740205142861,4.26443,2692.2,2692.1,5.37]
[1740205143065,5.06803,2692.2,2692.1,5.37]
[1740205145176,1.3536,2692.2,2692.1,5.37]
[1740205145365,0.55,2692.2,2692.1,5.37]
[1740205152187,4.26443,2692.2,2692.1,5.37]
[1740205152911,5.865908,2692.2,2692.1,5.37]
[1740205158591,5.865908,2692.2,2691.9,3.54907242]
[1740205158920,0.55,2692.0,2691.9,3.54907242]
[1740205163229,4.26471,2692.0,2691.9,3.54907242]
[1740205164542,4.26471,2692.0,2691.9,8.91907242]
[1740205166343,3.71431,2692.3,2691.9,8.91907242]
[1740205166541,0.7951,2692.4,2692.1,3.54907242]
[1740205166746,4.50928,2692.4,2692.1,3.54907242]
[1740205167112,4.26431,2692.3,2692.1,3.54907242]
[1740205167312,4.26443,2692.2,2692.1,3.54907242]
[1740205168680,4.26443,2692.2,2692.1,1.72477295]
[1740205172846,0.55,2692.2,2692.1,1.72477295]
[1740205181181,0.55,2692.2,2692.1,5.43934295]
[1740205182506,0.55,2692.2,2692.1,10.80934295]
[1740205182708,3.71361,2692.8,2692.2,3.71436]
[1740205182935,0.7809,2693.0,2692.7,3.4495459]
[1740205183254,0.7809,2693.3,2693.0,3.71332]
[1740205183435,0.7809,2693.3,2693.1,1.72477295]
[1740205183798,0.55,2693.2,2693.1,1.72477295]
[1740205184099,4.4939,2693.3,2693.1,1.72477295]
[1740205184533,0.55,2693.2,2693.1,1.72477295]
[1740205184737,0.55,2693.2,2693.0,8.92472845]
[1740205185635,4.26309,2693.2,2693.0,8.92472845]
[1740205186536,7.97625,2693.2,2693.0,8.92472845]
[1740205186738,4.26309,2693.2,2693.0,8.92472845]
[1740205187030,7.97625,2693.2,2693.0,8.92472845]
[1740205187233,3.71319,2693.1,2693.0,8.92472845]
[1740205187739,4.26309,2693.2,2693.0,8.92472845]
[1740205188100,4.26319,2693.1,2693.0,8.92472845]
[1740205188304,5.193908,2693.1,2693.0,5.37]
[1740205188902,4.26319,2693.1,2693.0,5.37]
[1740205195236,5.04409,2693.1,2693.0,5.37]
[1740205200174,5.04409,2693.1,2692.4,8.8]
[1740205200175,0.55,2693.0,2692.7,5.37]
[1740205200471,4.2636,2692.8,2692.7,5.37]
[1740205200971,0.55,2692.8,2692.7,5.37]
[1740205202096,3.71333,2693.0,2692.7,5.37]
[1740205202391,4.46723,2693.3,2692.7,6.2784]
[1740205202564,0.55,2693.2,2692.8,3.71354]
[1740205203075,0.55,2693.2,2692.9,3.71341]
[1740205203246,0.7542,2693.5,2692.7,5.37]
[1740205203446,3.71323,2693.1,2692.7,5.37]
[1740205203682,3.71323,2693.1,2692.7,6.27838]
[1740205204362,3.71341,2693.0,2692.7,6.27838]
[1740205204676,4.2636,2692.8,2692.7,5.37]
[1740205204875,5.0178,2692.8,2692.7,5.37]
[1740205206281,4.2636,2692.8,2692.7,5.37]
[1740205207677,0.55,2692.8,2692.7,5.37]
[1740205207883,0.7542,2693.3,2692.8,3.71353]
[1740205208094,0.55,2693.2,2692.8,3.76551405]
[1740205208399,4.26306,2693.2,2692.8,3.71353]
[1740205208958,0.55,2693.2,2692.8,3.71353]
[1740205209157,3.71292,2693.3,2692.8,3.71347]
[1740205209357,3.71321,2693.1,2692.9,0.9991855]
[1740205209555,3.71292,2693.3,2692.9,0.9991855]
[1740205209849,3.71307,2693.2,2692.9,0.9991855]
[1740205210410,0.55,2693.2,2692.9,0.9991855]
[1740205211653,0.55,2693.2,2693.0,4.18459655]
[1740205212066,0.55,2693.3,2693.1,5.37]
[1740205212725,0.7542,2693.7,2693.1,9.08305]
[1740205212936,0.7542,2693.9,2693.2,3.71292]
[1740205213094,3.71206,2694.0,2693.5,3.7126]
[1740205213429,3.71176,2694.2,2693.7,3.71229]
[1740205213644,3.71216,2693.9,2693.3,9.08282]
[1740205213847,3.71245,2693.7,2693.4,0.45020936]
[1740205214140,3.7117,2694.2,2693.3,5.37]
[1740205214141,3.71277,2693.4,2693.3,5.37]
[1740205214313,3.7126,2693.6,2693.3,5.37]
[1740205216941,3.71221,2693.9,2693.3,5.37]
[1740205217145,3.71221,2693.9,2693.4,5.12977]
[1740205217531,3.71232,2693.8,2693.4,1.417]
[1740205217732,3.71236,2693.7,2693.4,1.417]
[1740205217916,3.71257,2693.6,2693.4,1.417]
[1740205218116,3.71257,2693.6,2693.5,5.37]
[1740205220352,4.26257,2693.6,2693.5,5.37]
[1740205221756,5.870176,2693.6,2693.5,5.37]
[1740205223618,0.55,2693.5,2692.6,14.17]
[1740205223864,3.71338,2693.0,2692.7,14.17]
[1740205224023,3.71346,2692.9,2692.7,14.17]
[1740205224223,3.71346,2692.9,2692.7,5.37]
[1740205226173,0.55,2693.0,2692.7,5.37]
[1740205226386,0.55,2693.0,2692.8,0.05198503]
[1740205226579,3.71303,2693.3,2692.9,0.9135645]
[1740205226724,3.7128,2693.4,2693.0,0.05198116]
[1740205226923,0.55,2693.3,2693.0,0.05198116]
[1740205227384,3.71271,2693.5,2693.0,3.76525116]
[1740205227556,3.71271,2693.5,2693.1,5.37]
[1740205227874,0.55,2693.4,2693.1,5.37]
[1740205228056,4.26277,2693.4,2693.1,5.37]
[1740205230181,3.71302,2693.3,2693.1,5.37]
[1740205230477,3.71305,2693.2,2693.1,5.37]
[1740205237465,4.26305,2693.2,2693.1,5.37]
[1740205245260,8.23554,2693.5,2693.1,5.37]
[1740205245661,0.55,2693.4,2693.1,5.37]
[1740205246361,4.2628,2693.4,2693.1,5.37]
[1740205247144,0.55,2693.4,2693.1,5.37]
[1740205247343,3.71298,2693.3,2693.1,5.37]
[1740205247751,3.71305,2693.2,2693.1,5.37]
[1740205251274,4.26305,2693.2,2693.1,5.37]
[1740205251583,5.08975,2693.2,2693.1,5.37]
[1740205253998,5.970023,2693.2,2693.1,5.37]
[1740205255995,5.903823,2693.2,2693.1,5.37]
[1740205256296,3.71396,2692.6,2692.3,14.17]
[1740205256502,3.71396,2692.6,2692.4,14.17]
[1740205256854,7.42794,2692.6,2692.4,14.17]
[1740205257054,3.71396,2692.6,2692.4,14.17]
[1740205258720,7.42792,2692.6,2692.4,14.17]
[1740205258893,3.71396,2692.6,2692.4,14.17]
[1740205259099,7.42793,2692.6,2692.4,14.17]
[1740205259421,3.71396,2692.6,2692.4,14.17]
[1740205259617,7.42795,2692.6,2692.5,14.17]
[1740205260291,3.71396,2692.6,2692.5,14.17]
[1740205261121,4.47418,2692.8,2692.5,14.17]
[1740205261501,3.71368,2692.8,2692.5,14.17]
[1740205261698,4.53023,2693.0,2692.5,14.17]
[1740205261699,0.55,2692.9,2692.5,14.17]
[1740205261907,3.71343,2693.0,2692.5,14.17]
[1740205261908,3.71335,2693.0,2692.5,17.88395]
[1740205262423,3.71302,2693.3,2692.5,14.17]
[1740205262622,3.71302,2693.3,2692.7,3.71373]
[1740205262822,3.71302,2693.3,2692.6,15.587]
[1740205263193,3.7132,2693.1,2692.6,19.30087]
[1740205263391,0.55,2693.2,2692.7,3.71361]
[1740205263727,4.26311,2693.2,2692.7,3.71368]
[1740205264021,0.55,2693.2,2692.8,0.49716309]
[1740205264192,3.7132,2693.1,2692.8,0.49716309]
[1740205264614,7.4265,2693.1,2692.8,0.49716309]
[1740205264893,0.55,2693.0,2692.6,14.17]
[1740205265205,3.71374,2692.7,2692.6,14.17]
[1740205265420,3.71362,2692.8,2692.6,5.37]
[1740205265628,0.55,2692.8,2692.6,5.37]
[1740205267113,5.08464,2692.7,2692.6,5.37]
[1740205267810,0.55,2692.7,2692.6,5.37]
[1740205268014,3.71347,2692.9,2692.6,5.37]
[1740205268211,3.71346,2692.9,2692.6,5.37]
[1740205268435,3.71326,2693.1,2692.6,9.0838]
[1740205268636,3.7132,2693.1,2692.7,5.37]
[1740205269251,0.55,2693.2,2692.8,3.71358]
[1740205269545,3.713,2693.3,2692.9,5.37]
[1740205269749,3.71305,2693.2,2693.0,5.37]
[1740205272410,7.42618,2693.2,2693.0,5.37]
[1740205272644,4.53409,2693.1,2693.0,5.37]
[1740205274253,5.08409,2693.1,2693.0,5.37]
[1740205275254,5.08409,2693.1,2693.0,5.3588]
[1740205276154,1.3709,2693.1,2693.0,5.3588]
[1740205276358,0.55,2693.1,2693.0,5.3588]
[1740205276857,3.71292,2693.3,2693.0,5.3588]
[1740205277618,3.71306,2693.2,2693.0,5.3588]
[1740205277825,3.71284,2693.4,2693.0,5.3588]
[1740205278027,0.55,2693.3,2693.0,5.3588]
[1740205278438,4.26303,2693.3,2693.0,5.3588]
[1740205278638,3.71305,2693.2,2693.0,5.3588]
[1740205278842,3.71319,2693.1,2693.0,5.3588]
[1740205279030,8.2419,2693.2,2693.0,5.3588]
[1740205279367,3.71319,2693.1,2693.0,5.3588]
[1740205282082,5.142384,2693.1,2693.0,5.3588]
[1740205282598,5.954884,2693.1,2693.0,5.3588]
[1740205292383,4.26388,2692.6,2692.5,5.3588]
[1740205304248,5.07228,2692.6,2692.5,5.3588]
[1740205309573,3.71484,2691.9,2691.8,14.1588]
[1740205311289,4.26484,2691.9,2691.8,5.3588]
[1740205325444,4.36059063,2692.6,2691.3,5.3588]
[1740205325445,4.26553,2691.4,2691.3,5.3588]
[1740205326047,3.71521,2691.7,2691.3,5.3588]
[1740205326271,0.8033,2691.8,2691.3,5.3588]
[1740205326475,0.55,2691.6,2691.3,5.3588]
[1740205326676,4.26526,2691.6,2691.3,5.3588]
[1740205326942,0.55,2691.6,2691.3,5.3588]
[1740205327143,4.26537,2691.6,2691.3,5.3588]
[1740205328487,4.51837,2691.8,2691.3,5.3588]
[1740205328488,0.55,2691.7,2691.3,5.3588]
[1740205328687,4.26512,2691.7,2691.3,5.3588]
[1740205329061,3.71529,2691.6,2691.3,5.3588]
[1740205329391,3.7155,2691.5,2691.3,5.3588]
[1740205329691,3.71527,2691.6,2691.3,5.3588]
[1740205330986,5.06848,2691.7,2691.3,5.3588]
[1740205331489,4.26518,2691.7,2691.3,5.3588]
[1740205332398,3.71532,2691.6,2691.3,5.3588]
[1740205332688,4.26518,2691.7,2691.3,5.3588]
[1740205332990,3.71532,2691.6,2691.3,5.3588]
[1740205334490,4.26514,2691.7,2691.3,5.3588]
[1740205334790,0.55,2691.7,2691.3,5.3588]
[1740205335495,4.51827,2691.9,2691.3,6.68986346]
[1740205335672,4.51827,2691.9,2691.3,10.353458]
[1740205335673,8.23323,2691.9,2691.3,10.353458]
[1740205335996,0.55,2691.8,2691.3,6.637848]
[1740205336588,4.26503,2691.8,2691.3,6.637848]
[1740205336765,0.55,2691.8,2691.4,5.3588]
[1740205337495,4.26499,2691.8,2691.4,5.3588]
[1740205339961,3.71512,2691.7,2691.4,5.3588]
[1740205341295,0.55,2691.8,2691.4,5.3588]
[1740205341491,3.71527,2691.6,2691.4,5.3588]
[1740205342911,4.5481,2691.5,2691.4,5.3588]
[1740205343072,5.0981,2691.5,2691.4,5.3588]
[1740205346310,3.7154,2691.5,2691.4,5.3588]
[1740205350512,3.71528,2691.6,2691.4,5.3588]
[1740205354710,3.71528,2691.6,2691.1,3.71593]
[1740205354910,3.71528,2691.6,2691.2,5.3588]
[1740205357634,0.55,2691.6,2691.2,9.07458]
[1740205357811,0.55,2691.6,2691.2,5.3588]
[1740205359136,4.26532,2691.6,2691.2,5.3588]
[1740205361644,0.55,2691.6,2691.2,5.3588]
[1740205364311,4.26532,2691.6,2691.2,5.3588]
[1740205372048,0.55,2691.6,2691.2,5.3588]
[1740205372454,0.55,2691.6,2691.2,9.07459]
[1740205374322,0.8327,2691.7,2691.2,5.3588]
[1740205374519,0.8327,2691.7,2691.3,3.7156]
[1740205374947,0.8327,2691.7,2691.2,9.07458]
[1740205375334,4.54783,2691.7,2691.2,9.07458]
[1740205376576,0.8327,2691.7,2691.2,9.07458]
[1740205377128,4.54788,2691.7,2691.2,5.3588]
[1740205377428,4.54788,2691.7,2691.2,9.0746]
[1740205378455,4.54788,2691.7,2691.3,5.3588]
[1740205384353,4.54788,2691.7,2691.2,3.71574]
[1740205384985,3.71584,2691.2,2690.5,3.71678]
[1740205385188,3.71598,2691.1,2690.6,3.71658]
[1740205385393,3.71598,2691.1,2690.7,3.0]
[1740205385595,4.53696,2691.3,2690.7,6.71649]
[1740205385757,4.53696,2691.3,2690.8,0.698149]
[1740205385958,4.53696,2691.3,2690.8,4.414499]
[1740205386153,3.71581,2691.2,2690.8,0.698149]
[1740205386355,0.8212,2691.3,2690.8,4.414449]
[1740205386687,0.8212,2691.3,2690.9,1.14787547]
[1740205386995,3.71464,2692.1,2690.7,0.34780569]
[1740205386996,0.8212,2691.5,2691.1,3.71585]
[1740205387295,0.8212,2691.5,2691.2,5.3588]
[1740205388391,0.8212,2691.5,2691.2,9.07449]
[1740205388554,0.8212,2691.7,2691.3,3.71565]
[1740205388761,4.53633,2691.7,2691.2,9.07449]
[1740205388960,3.71554,2691.4,2691.2,5.3588]
[1740205389307,4.53674,2691.4,2691.2,5.3588]
[1740205389463,0.8212,2691.4,2691.2,5.3588]
[1740205390360,3.71567,2691.3,2691.2,5.3588]
[1740205391159,4.53687,2691.3,2691.2,5.3588]
[1740205395293,0.8212,2691.3,2691.2,5.3588]
[1740205395798,0.55,2691.4,2691.2,5.3588]
[1740205396887,0.8212,2691.5,2691.2,5.3588]
[1740205397264,4.53666,2691.5,2691.2,5.3588]
[1740205404307,0.8212,2691.5,2691.2,5.3588]
[1740205404497,0.7852,2691.7,2691.2,9.07453]
[1740205404692,0.7852,2691.7,2691.3,5.3588]
[1740205405306,3.71527,2691.6,2691.3,5.3588]
[1740205405610,4.50033,2691.7,2691.3,5.3588]
[1740205409013,3.71529,2691.6,2691.3,5.3588]
[1740205409308,0.7852,2691.7,2691.3,5.3588]
[1740205409620,4.50033,2691.7,2691.3,5.3588]
[1740205412779,4.50033,2691.7,2691.3,9.07447]
[1740205412981,0.7852,2691.7,2691.3,9.07447]
[1740205414918,4.50034,2691.7,2691.3,5.3588]
[1740205415532,0.7852,2691.7,2691.3,9.07445]
[1740205420048,0.7852,2691.7,2691.3,3.71565]
[1740205420706,4.50038,2691.7,2691.1,3.71582]
[1740205420913,4.50038,2691.7,2691.1,4.087402]
[1740205421134,0.7852,2691.7,2691.1,4.087402]
[1740205421338,0.55,2691.9,2691.3,3.71567]
[1740205421339,4.26497,2691.9,2691.3,3.71567]
[1740205421734,3.71504,2691.8,2691.1,4.087482]
[1740205422042,3.71504,2691.8,2691.3,3.71567]
[1740205422642,4.26487,2691.9,2691.4,3.71552]
[1740205425974,4.26487,2691.9,2691.5,5.3588]
[1740205427268,0.55,2691.9,2691.5,5.3588]
[1740205427626,0.7852,2692.7,2692.0,3.71464]
[1740205427948,3.71394,2692.6,2692.1,5.3588]
[1740205428637,3.71388,2692.6,2692.1,5.3588]
[1740205428811,7.42784,2692.6,2692.1,14.1588]
[1740205429014,0.7852,2692.7,2692.3,3.71422]
[1740205429252,0.7852,2692.9,2692.4,1.50541489]
[1740205429421,3.71361,2692.8,2692.4,1.50541489]
[1740205430432,0.7852,2692.9,2692.5,3.71388]
[1740205430628,4.49873,2692.9,2692.4,5.21956489]
[1740205430833,4.49873,2692.9,2692.5,0.4087482]
[1740205431316,0.7852,2692.9,2692.5,0.4087482]
[1740205431522,3.71374,2692.7,2692.2,17.87315]
[1740205431826,3.7136,2692.8,2692.3,3.71425]
[1740205432029,3.7136,2692.8,2692.2,17.87314]
[1740205432333,3.7136,2692.8,2692.4,3.71414]
[1740205432650,3.7136,2692.8,2692.5,0.371414]
[1740205432955,0.7852,2692.9,2692.5,0.371414]
[1740205433117,0.7852,2692.9,2692.6,5.3588]
[1740205433854,0.7852,2692.9,2692.6,9.07267]
[1740205434025,0.7852,2692.9,2692.6,5.3588]
[1740205434235,0.7852,2692.9,2692.6,6.90154909]
[1740205434424,4.49868,2692.9,2692.6,6.90154909]
[1740205434624,3.71361,2692.8,2692.6,6.90154909]
[1740205434851,3.71374,2692.7,2692.6,5.3588]
[1740205436839,5.07684,2692.7,2692.6,5.3588]
[1740205440484,4.52753,2692.2,2692.1,5.3588]
[1740205441138,5.07753,2692.2,2692.1,5.3588]
[1740205442266,1.3631,2692.2,2692.1,5.3588]
[1740205442430,0.7941,2692.4,2692.1,6.77468]
[1740205442764,3.7141,2692.5,2692.1,6.77468]
[1740205443165,7.42821,2692.5,2692.1,6.77468]
[1740205443464,0.55,2692.6,2692.1,6.77468]
[1740205443646,0.55,2692.6,2692.2,3.71434]
[1740205443840,0.55,2692.6,2692.3,5.3588]
[1740205444231,3.71362,2692.8,2692.3,9.57128309]
[1740205444451,0.55,2692.7,2692.3,18.37128309]
[1740205444861,3.71404,2692.5,2692.3,14.65708309]
[1740205445072,3.71404,2692.5,2692.3,14.1588]
[1740205445364,4.26383,2692.7,2692.3,14.1588]
[1740205445577,3.71391,2692.6,2692.3,14.1588]
[1740205446167,4.26383,2692.7,2692.3,14.1588]
[1740205446463,4.26383,2692.7,2692.3,17.87308]
[1740205447175,3.71389,2692.6,2692.3,14.1588]
[1740205447544,3.71412,2692.5,2692.3,14.1588]
[1740205448883,3.71389,2692.6,2692.3,14.1588]
[1740205449749,3.71389,2692.6,2692.3,5.3588]
[1740205449952,0.55,2692.7,2692.3,5.3588]
[1740205450147,0.55,2692.7,2692.4,3.71412]
[1740205450335,3.71363,2692.8,2692.4,3.71412]
[1740205451264,3.71363,2692.8,2692.3,9.07307]
[1740205452087,3.71381,2692.7,2692.3,5.3588]
[1740205452472,3.71362,2692.8,2692.3,9.07301]
[1740205452678,3.71377,2692.7,2692.3,9.07301]
[1740205453588,3.71377,2692.7,2692.3,5.3588]
[1740205454297,3.71394,2692.6,2692.3,5.3588]
[1740205455743,3.71394,2692.6,2692.4,14.1588]
[1740205457380,3.71402,2692.5,2692.4,14.1588]
[1740205457563,4.52562,2692.5,2692.4,14.1588]
[1740205458759,5.899576,2692.5,2692.4,14.1588]
[1740205460264,5.07562,2692.5,2692.4,14.1588]
[1740205460473,3.71394,2692.6,2692.4,14.1588]
[1740205460785,3.71402,2692.5,2692.4,14.1588]
[1740205461689,3.71431,2692.3,2691.9,3.71478]
[1740205462302,0.8116,2692.7,2691.8,3.0]
[1740205462505,3.71436,2692.3,2691.8,3.0]
[1740205463190,3.71436,2692.3,2691.8,6.71489]
[1740205463395,3.71415,2692.4,2691.9,3.71477]
[1740205463970,3.71436,2692.3,2691.8,6.71489]
[1740205464171,3.71436,2692.3,2691.8,10.42978]
[1740205465090,3.71436,2692.3,2691.9,3.71478]
[1740205465298,4.26413,2692.5,2692.0,3.7147]
[1740205465598,3.71422,2692.4,2691.9,4.80976874]
[1740205465890,3.71422,2692.4,2691.9,4.757767]
[1740205466660,3.71422,2692.4,2691.9,4.757737]
[1740205467097,3.71422,2692.4,2691.9,4.80973859]
[1740205467670,3.71399,2692.6,2692.0,6.22999609]
[1740205467873,7.42799,2692.6,2692.1,3.71449]
[1740205468394,3.71396,2692.6,2692.1,3.71449]
[1740205468785,3.71396,2692.6,2692.0,6.22999609]
[1740205468989,3.71421,2692.4,2692.1,1.042967]
[1740205469383,3.71433,2692.3,2692.1,1.042967]
[1740205470283,3.71421,2692.4,2692.1,1.042967]
[1740205470602,3.71396,2692.6,2692.1,4.757497]
[1740205470793,3.71404,2692.5,2692.1,4.757497]
[1740205471107,3.71404,2692.5,2692.2,0.87119609]
[1740205472483,4.52537,2692.7,2692.2,0.87119609]
[1740205472692,3.7139,2692.6,2692.2,0.87119609]
[1740205473510,3.7139,2692.6,2692.3,5.3588]
[1740205474696,3.71408,2692.5,2692.3,5.3588]
[1740205474897,3.71415,2692.4,2692.3,5.3588]
[1740205478414,5.793473,2692.4,2692.3,5.3588]
[1740205481422,5.05065,2692.4,2692.3,5.3588]
[1740205481584,3.71305,2693.2,2692.3,5.3588]
[1740205481789,3.71415,2692.4,2692.3,5.3588]
[1740205483314,3.71397,2692.6,2692.3,5.3588]
[1740205483896,3.71414,2692.5,2692.3,5.3588]
[1740205484096,3.71397,2692.6,2692.3,5.3588]
[1740205484298,3.71415,2692.4,2692.3,5.3588]
[1740205487234,5.780969,2692.4,2692.3,5.3588]
[1740205491140,3.71512,2691.7,2691.6,14.1588]
[1740205491436,3.71546,2691.5,2691.1,0.265]
[1740205491635,3.71546,2691.5,2691.1,3.0]
[1740205491933,3.71546,2691.5,2691.2,0.698108]
[1740205494314,3.71546,2691.5,2691.3,14.1588]
[1740205494731,3.71546,2691.5,2691.3,5.3588]
[1740205495660,3.71527,2691.6,2691.3,5.3588]
[1740205496155,3.71532,2691.6,2691.3,5.3588]
[1740205497428,3.71532,2691.6,2691.3,6.57485509]
[1740205498356,3.71553,2691.5,2691.3,5.3588]
[1740205498552,3.71553,2691.4,2691.3,5.3588]
[1740205501761,4.4859,2691.5,2691.3,5.3588]
[1740205501964,3.71553,2691.4,2691.3,5.3588]
[1740205502563,3.7154,2691.5,2691.3,5.3588]
[1740205502761,4.46581,2691.7,2691.3,6.77468]
[1740205502963,3.71538,2691.6,2691.3,6.77468]
[1740205503128,3.71538,2691.6,2691.4,5.3588]
[1740205505162,3.71506,2691.8,2691.4,5.3588]
[1740205505355,3.71523,2691.7,2691.4,5.3588]
[1740205506663,3.71527,2691.6,2691.4,5.3588]
[1740205506844,7.43064,2691.6,2691.4,5.3588]
[1740205507041,3.71527,2691.6,2691.4,5.3588]
[1740205508667,3.71509,2691.8,2691.4,5.3588]
[1740205508848,3.71518,2691.7,2691.4,5.3588]
[1740205509363,4.46554,2691.9,2691.5,5.3588]
[1740205509574,3.71512,2691.7,2691.5,5.3588]
[1740205509870,3.71499,2691.8,2691.5,5.3588]
[1740205510451,3.71514,2691.7,2691.5,5.3588]
[1740205510651,3.71499,2691.8,2691.5,5.3588]
[1740205510863,3.71509,2691.8,2691.5,5.3588]
[1740205511063,3.71517,2691.7,2691.5,5.3588]
[1740205513773,7.43037,2691.7,2691.5,5.3588]
[1740205513972,3.71517,2691.7,2691.5,5.3588]
[1740205517876,3.71498,2691.8,2691.5,5.3588]
[1740205521648,4.46553,2691.9,2691.5,5.3588]
[1740205521968,3.71513,2691.7,2691.5,5.3588]
[1740205522170,3.71501,2691.8,2691.5,5.3588]
[1740205524979,3.71515,2691.7,2691.5,5.3588]
[1740205525189,3.715,2691.8,2691.5,5.3588]
[1740205526685,7.43009,2691.8,2691.5,5.3588]
[1740205527085,3.71515,2691.7,2691.5,5.3588]
[1740205528390,3.71526,2691.6,2691.5,5.3588]
[1740205528592,0.7506,2691.9,2691.5,5.3588]
[1740205528765,3.71526,2691.6,2691.5,5.3588]
[1740205537518,5.04906,2691.6,2691.5,5.3588]
[1740205538814,4.26526,2691.6,2690.7,3.265]
[1740205538990,7.43205,2691.1,2690.7,3.265]
[1740205539197,3.716,2691.1,2690.7,4.41075395]
[1740205539517,7.43205,2691.1,2690.7,4.41075395]
[1740205539818,3.716,2691.1,2690.7,4.41075395]
[1740205539989,0.7838,2691.2,2690.7,4.41075395]
[1740205539990,0.7838,2691.2,2690.7,1.14575395]
[1740205540315,3.71634,2690.9,2690.5,0.265]
[1740205540487,3.71636,2690.8,2690.5,0.265]
[1740205540686,3.7166,2690.7,2690.4,0.4112988]
[1740205540886,3.71671,2690.6,2690.4,0.4112988]
[1740205541192,3.71666,2690.6,2690.4,0.4112988]
[1740205541396,3.71666,2690.6,2690.4,0.1462988]
[1740205541720,3.7165,2690.7,2690.4,0.1462988]
[1740205542216,3.71554,2691.4,2690.9,3.71617]
[1740205543253,3.71554,2691.4,2690.9,7.4323]
[1740205543419,3.71554,2691.4,2690.9,3.71614]
[1740205543715,3.71554,2691.4,2690.7,3.71638]
[1740205543923,3.71569,2691.3,2690.8,4.087928]
[1740205544931,3.71569,2691.3,2690.9,14.1588]
[1740205545132,4.46973,2691.5,2690.9,17.875]
[1740205545448,3.71554,2691.4,2691.0,14.1588]
[1740205545645,4.46973,2691.5,2691.0,17.87481]
[1740205547742,0.7543,2691.5,2691.0,18.70448721]
[1740205548407,0.7543,2691.5,2691.0,14.98847721]
[1740205548612,4.46977,2691.5,2691.0,14.98847721]
[1740205549001,0.7543,2691.5,2691.0,14.98847721]
[1740205549200,4.4697,2691.5,2691.0,14.98847721]
[1740205549707,0.7543,2691.5,2691.0,18.70449721]
[1740205550012,0.7543,2691.5,2691.1,0.71284788]
[1740205550499,0.7543,2691.5,2691.0,18.70449721]
[1740205550830,0.7543,2691.5,2691.1,14.1588]
[1740205551602,4.46971,2691.5,2691.1,14.1588]
[1740205551818,0.7543,2691.5,2691.1,14.1588]